[Event "RUS-ch Rapid Men 2018"]
[Site "Sochi"]
[Date "2018.10.05"]
[Round "2"]
[White "Vastrukhin, Oleg"]
[Black "Derjabin, Ilja"]
[Result "1-0"]
[ECO "A00"]
[WhiteElo "2413"]
[BlackElo "2345"]
[Annotator "NA"]
[PlyCount "91"]
[EventDate "2018.10.05"]
[EventType "swiss"]
[EventCountry "RUS"]
[SourceTitle "playchess.com"]
[Source "ChessBase"]
[SourceQuality "1"]
[TimeControl "900+10"]

1. g3 {[%emt 0:00:00]} c5 {[%emt 0:00:00]} 2. Bg2 {[%emt 0:00:00]} d5 {[%emt 0:00:00]} 3. d3 {[%emt 0:00:06]} Nc6 {[%emt 0:00:00]} 4. e4 {[%emt 0:00:09]} dxe4 {[%emt 0:00:16]} 5. dxe4 {[%emt 0:00:02]} Qxd1+ {[%emt 0:00:19]} 6. Kxd1 {[%emt 0:00:01]} Nf6 {[%emt 0:04:29]} 7. f3 {[%emt 0:00:17]} b6 {[%emt 0:00:19]} 8. Be3 {[%emt 0:01:26]} g6 {[%emt 0:00:29]} 9. Nd2 {[%emt 0:00:21]} h5 {[%emt 0:00:13]} 10. h4 {[%emt 0:00:39]} Bh6 {[%emt 0:00:20]} 11. Bxh6 {[%emt 0:00:14]} Rxh6 {[%emt 0:00:02]} 12. c3 {[%emt 0:00:29]} Ba6 {[%emt 0:00:12]} 13. Bf1 {[%emt 0:00:58]} Bxf1 {[%emt 0:00:09]} 14. Nxf1 {[%emt 0:00:01]} O-O-O+ {[%emt 0:00:08]} 15. Ke2 {[%emt 0:00:01]} e6 {[%emt 0:03:12]} 16. Nh3 {[%emt 0:00:09]} Kd7 {[%emt 0:00:11]} 17. Rd1+ {[%emt 0:00:23]} Ke7 {[%emt 0:00:01]} 18. Rxd8 {[%emt 0:00:04]} Kxd8 {[%emt 0:00:17]} 19. Ne3 {[%emt 0:00:09]} Ke7 {[%emt 0:00:01]} 20. a4 {[%emt 0:02:08]} Rh8 {[%emt 0:00:07]} 21. Nc4 {[%emt 0:00:07]} Rd8 {[%emt 0:00:43]} 22. Nf4 {[%emt 0:00:32]} Na5 {[%emt 0:00:53]} 23. Ne5 {[%emt 0:03:56]} Nd7 {[%emt 0:01:33]} 24. Nxd7 {[%emt 0:00:01]} Rxd7 {[%emt 0:00:04]} 25. Nd3 {[%emt 0:00:02]} Nc6 {[%emt 0:00:08]} 26. f4 {[%emt 0:01:17]} c4 {[%emt 0:01:04]} 27. Nf2 {[%emt 0:00:04]} a6 {[%emt 0:00:26]} 28. Nd1 {[%emt 0:00:36]} b5 {[%emt 0:00:06]} 29. Ne3 {[%emt 0:00:03]} Na5 {[%emt 0:00:10]} 30. axb5 {[%emt 0:00:59]} axb5 {[%emt 0:00:03]} 31. Rd1 {[%emt 0:00:02]} Rb7 {[%emt 0:00:11]} 32. Nc2 {[%emt 0:00:35]} Nb3 {[%emt 0:00:20]} 33. Nb4 {[%emt 0:00:31]} Rc7 {[%emt 0:00:50]} 34. e5 {[%emt 0:00:20]} Nc5 {[%emt 0:00:04]} 35. Ke3 {[%emt 0:00:02]} Na4 {[%emt 0:00:03]} 36. Rd2 {[%emt 0:01:13]} f6 {[%emt 0:00:30]} 37. Rd6 {[%emt 0:01:07]} fxe5 {[%emt 0:00:39]} 38. fxe5 {[%emt 0:00:01]} Nxb2 {[%emt 0:01:11]} 39. Nc6+ {[%emt 0:00:01]} Kf7 {[%emt 0:00:02]} 40. Nd8+ {[%emt 0:00:02]} Ke7 {[%emt 0:00:00]} 41. Nxe6 {[%emt 0:00:17]} Ra7 {[%emt 0:01:00]} 42. Nf4 {[%emt 0:00:44]} Ra3 {[%emt 0:00:29]} 43. Nd5+ {[%emt 0:00:01]} Ke8 {[%emt 0:00:24]} 44. Rxg6 {[%emt 0:00:51]} Nd1+ {[%emt 0:00:24]} 45. Kd4 {[%emt 0:00:02]} b4 {[%emt 0:00:04]} 46. e6 {[%emt 0:00:03]} 1-0

[Event "RUS-ch Rapid Men 2018"]
[Site "Sochi"]
[Date "2018.10.05"]
[Round "2"]
[White "Yashmetov, Mikhail"]
[Black "Lysyj, Igor"]
[Result "0-1"]
[ECO "E09"]
[WhiteElo "2394"]
[BlackElo "2631"]
[Annotator "ChessBase"]
[PlyCount "92"]
[EventDate "2018.10.05"]
[EventType "swiss"]
[EventCountry "RUS"]
[SourceTitle "playchess.com"]
[Source "ChessBase"]
[SourceQuality "1"]
[TimeControl "900+10"]

1. Nf3 {[%emt 0:00:00]} d5 {[%emt 0:00:00]} 2. g3 {[%emt 0:00:00]} Nf6 {[%emt 0:00:00]} 3. Bg2 {[%emt 0:00:00]} e6 {[%emt 0:00:00]} 4. O-O {[%emt 0:00:03]} Be7 {[%emt 0:00:00]} 5. d4 {[%emt 0:00:12]} O-O {[%emt 0:00:00]} 6. c4 {[%emt 0:00:00]} Nbd7 {[%emt 0:00:01]} 7. Nbd2 {[%emt 0:00:00]} c6 {[%emt 0:00:10]} 8. Qc2 {[%emt 0:00:00]} b6 {[%emt 0:00:03]} 9. e4 {[%emt 0:00:12]} dxc4 {[%emt 0:00:01]} 10. Nxc4 {[%emt 0:00:09]} Bb7 {[%emt 0:00:02]} 11. Rd1 {[%emt 0:00:33]} c5 {[%emt 0:00:16]} 12. e5 {[%emt 0:08:36]} Nd5 {[%emt 0:00:06]} 13. Nd6 {[%emt 0:00:43]} Bxd6 {[%emt 0:01:39]} 14. exd6 {[%emt 0:00:02]} Rc8 {[%emt 0:00:50]} 15. dxc5 {[%emt 0:01:08]} Rxc5 {[%emt 0:00:30]} 16. Qd3 {[%emt 0:01:11]} Qa8 {[%emt 0:01:21]} 17. Bd2 {[%emt 0:01:15]} Rd8 {[%emt 0:02:14]} 18. Rac1 {[%emt 0:01:49]} Rxc1 {[%emt 0:01:56]} 19. Rxc1 {[%emt 0:00:12]} Nc5 {[%emt 0:00:05]} 20. Qe2 {[%emt 0:00:06]} Rxd6 {[%emt 0:00:43]} 21. b4 {[%emt 0:00:06]} Nd7 {[%emt 0:00:11]} 22. a3 {[%emt 0:00:10]} N5f6 {[%emt 0:00:58]} 23. Ne1 {[%emt 0:00:50]} Bxg2 {[%emt 0:00:11]} 24. Nxg2 {[%emt 0:00:02]} h6 {[%emt 0:00:48]} 25. Bf4 {[%emt 0:00:09]} Rc6 {[%emt 0:00:09]} 26. Rd1 {[%emt 0:00:07]} Nd5 {[%emt 0:00:15]} 27. Bd2 {[%emt 0:00:17]} Qc8 {[%emt 0:00:14]} 28. Nf4 {[%emt 0:00:23]} N7f6 {[%emt 0:00:41]} 29. Nxd5 {[%emt 0:00:02]} Nxd5 {[%emt 0:00:11]} 30. h3 {[%emt 0:00:07]} Rc2 {[%emt 0:00:20]} 31. Qf3 {[%emt 0:00:13]} Qc4 {[%emt 0:00:11]} 32. Kg2 {[%emt 0:00:27]} b5 {[%emt 0:00:14]} 33. h4 {[%emt 0:00:15]} a6 {[%emt 0:00:10]} 34. Be3 {[%emt 0:00:37]} Rc3 {[%emt 0:00:58]} 35. Rd4 {[%emt 0:00:02]} Qb3 {[%emt 0:00:11]} 36. Rg4 {[%emt 0:00:20]} Qc2 {[%emt 0:01:31]} 37. Kh3 {[%emt 0:00:25]} h5 {[%emt 0:00:33]} 38. Rg5 {[%emt 0:00:09]} g6 {[%emt 0:00:39]} 39. Re5 {[%emt 0:00:09]} Rxa3 {[%emt 0:00:23]} 40. Qh1 {[%emt 0:00:15]} Nxe3 {[%emt 0:00:37]} 41. Qa8+ {[%emt 0:00:06]} Kg7 {[%emt 0:00:07]} 42. fxe3 {[%emt 0:00:01]} Ra2 {[%emt 0:00:29]} 43. Qh1 {[%emt 0:00:02]} Qe2 {[%emt 0:00:17]} 44. Re4 {[%emt 0:00:06]} f5 {[%emt 0:00:09]} 45. Rd4 {[%emt 0:00:06]} Qg4+ {[%emt 0:00:03]} 46. Rxg4 {[%emt 0:00:01]} hxg4# {[%emt 0:00:01]} 0-1

[Event "RUS-ch Rapid Men 2018"]
[Site "Sochi"]
[Date "2018.10.05"]
[Round "2"]
[White "Murzin, Volodar"]
[Black "Kryakvin, Dmitry"]
[Result "1-0"]
[ECO "B52"]
[WhiteElo "2340"]
[BlackElo "2595"]
[Annotator "RC"]
[PlyCount "195"]
[EventDate "2018.10.05"]
[EventType "swiss"]
[EventCountry "RUS"]
[SourceTitle "playchess.com"]
[Source "ChessBase"]
[SourceQuality "1"]
[TimeControl "900+10"]

1. e4 {[%emt 0:00:00]} c5 {[%emt 0:00:00]} 2. Nf3 {[%emt 0:00:00]} d6 {[%emt 0:00:00]} 3. Bb5+ {[%emt 0:00:00]} Bd7 {[%emt 0:00:00]} 4. Bxd7+ {[%emt 0:00:00]} Qxd7 {[%emt 0:00:00]} 5. O-O {[%emt 0:00:00]} Nf6 {[%emt 0:00:00]} 6. Re1 {[%emt 0:00:01]} Nc6 {[%emt 0:00:00]} 7. c3 {[%emt 0:00:02]} e6 {[%emt 0:00:00]} 8. d4 {[%emt 0:00:01]} cxd4 {[%emt 0:00:00]} 9. cxd4 {[%emt 0:00:01]} d5 {[%emt 0:00:00]} 10. e5 {[%emt 0:00:01]} Ne4 {[%emt 0:00:00]} 11. Nbd2 {[%emt 0:00:01]} Nxd2 {[%emt 0:00:00]} 12. Bxd2 {[%emt 0:00:02]} Be7 {[%emt 0:00:02]} 13. Rc1 {[%emt 0:00:01]} O-O {[%emt 0:00:13]} 14. Rc3 {[%emt 0:00:01]} Rfc8 {[%emt 0:00:25]} 15. a3 {[%emt 0:00:23]} Bd8 {[%emt 0:00:15]} 16. Rd3 {[%emt 0:00:04]} Ne7 {[%emt 0:00:21]} 17. Ng5 {[%emt 0:00:40]} Ng6 {[%emt 0:00:50]} 18. Nxh7 {[%emt 0:01:57]} Kxh7 {[%emt 0:00:53]} 19. Qh5+ {[%emt 0:00:02]} Kg8 {[%emt 0:00:01]} 20. Rh3 {[%emt 0:00:02]} a5 {[%emt 0:05:20]} 21. Qh7+ {[%emt 0:00:13]} Kf8 {[%emt 0:00:01]} 22. Rf3 {[%emt 0:00:14]} Ne7 {[%emt 0:03:06]} 23. Qh8+ {[%emt 0:00:53]} Ng8 {[%emt 0:00:04]} 24. Rg3 {[%emt 0:00:15]} f5 {[%emt 0:00:49]} 25. Bh6 {[%emt 0:00:12]} Rc7 {[%emt 0:00:01]} 26. h3 {[%emt 0:04:00]} Qf7 {[%emt 0:00:18]} 27. Rxg7 {[%emt 0:00:16]} Qxg7 {[%emt 0:00:02]} 28. Bxg7+ {[%emt 0:00:02]} Rxg7 {[%emt 0:00:01]} 29. Qh5 {[%emt 0:03:06]} Rc8 {[%emt 0:00:13]} 30. Qe2 {[%emt 0:00:41]} Rc4 {[%emt 0:00:21]} 31. Qd2 {[%emt 0:00:31]} Bb6 {[%emt 0:00:54]} 32. Rc1 {[%emt 0:00:54]} Rgc7 {[%emt 0:00:12]} 33. Rxc4 {[%emt 0:01:45]} Rxc4 {[%emt 0:00:01]} 34. g4 {[%emt 0:00:24]} Rxd4 {[%emt 0:00:27]} 35. Qc2 {[%emt 0:00:21]} Ne7 {[%emt 0:01:08]} 36. gxf5 {[%emt 0:00:03]} exf5 {[%emt 0:00:01]} 37. Qe2 {[%emt 0:01:06]} Bc7 {[%emt 0:01:20]} 38. Qe3 {[%emt 0:00:29]} Re4 {[%emt 0:02:05]} 39. Qh6+ {[%emt 0:00:02]} Ke8 {[%emt 0:00:02]} 40. e6 {[%emt 0:00:10]} Be5 {[%emt 0:00:02]} 41. Qh5+ {[%emt 0:00:08]} Kd8 {[%emt 0:00:03]} 42. Qf7 {[%emt 0:00:03]} Bd6 {[%emt 0:00:12]} 43. Qf8+ {[%emt 0:01:15]} Kc7 {[%emt 0:00:01]} 44. Qa8 {[%emt 0:00:04]} Rxe6 {[%emt 0:00:55]} 45. Qxa5+ {[%emt 0:00:01]} Kc8 {[%emt 0:00:03]} 46. Qa8+ {[%emt 0:00:05]} Bb8 {[%emt 0:00:06]} 47. Qa5 {[%emt 0:00:27]} d4 {[%emt 0:00:08]} 48. Qc5+ {[%emt 0:00:03]} Nc6 {[%emt 0:00:09]} 49. Qxf5 {[%emt 0:00:04]} Kd7 {[%emt 0:00:05]} 50. b4 {[%emt 0:00:12]} Be5 {[%emt 0:00:20]} 51. f4 {[%emt 0:00:24]} Bf6 {[%emt 0:00:22]} 52. Kf1 {[%emt 0:00:05]} Ne7 {[%emt 0:00:17]} 53. Qb5+ {[%emt 0:00:01]} Kc7 {[%emt 0:00:04]} 54. Qa5+ {[%emt 0:00:55]} Kb8 {[%emt 0:00:20]} 55. Qb5 {[%emt 0:00:43]} Rd6 {[%emt 0:00:12]} 56. Ke2 {[%emt 0:00:28]} d3+ {[%emt 0:00:04]} 57. Kd2 {[%emt 0:00:01]} Bc3+ {[%emt 0:00:18]} 58. Kd1 {[%emt 0:00:22]} Nc8 {[%emt 0:00:28]} 59. Qc4 {[%emt 0:00:20]} Bf6 {[%emt 0:00:09]} 60. Kd2 {[%emt 0:00:01]} Nb6 {[%emt 0:00:17]} 61. Qc5 {[%emt 0:00:04]} Be7 {[%emt 0:00:26]} 62. f5 {[%emt 0:00:13]} Bg5+ {[%emt 0:00:13]} 63. Kd1 {[%emt 0:00:02]} Nc8 {[%emt 0:00:23]} 64. b5 {[%emt 0:00:14]} d2 {[%emt 0:00:15]} 65. a4 {[%emt 0:00:02]} b6 {[%emt 0:00:04]} 66. Qe5 {[%emt 0:00:06]} Bf6 {[%emt 0:00:17]} 67. Qf4 {[%emt 0:00:09]} Kc7 {[%emt 0:00:04]} 68. h4 {[%emt 0:00:12]} Ne7 {[%emt 0:00:02]} 69. h5 {[%emt 0:00:06]} Kd7 {[%emt 0:00:10]} 70. Qc4 {[%emt 0:00:21]} Nxf5 {[%emt 0:00:18]} 71. Qg4 {[%emt 0:00:07]} Ke6 {[%emt 0:00:00]} 72. h6 {[%emt 0:00:14]} Rd4 {[%emt 0:00:02]} 73. Qh3 {[%emt 0:00:12]} Rh4 {[%emt 0:00:39]} 74. Qb3+ {[%emt 0:00:01]} Ke7 {[%emt 0:00:02]} 75. Kxd2 {[%emt 0:00:04]} Rh2+ {[%emt 0:00:09]} 76. Kd1 {[%emt 0:00:07]} Rxh6 {[%emt 0:00:08]} 77. Qb4+ {[%emt 0:00:00]} Kf7 {[%emt 0:00:12]} 78. Qe4 {[%emt 0:00:03]} Ne7 {[%emt 0:00:14]} 79. Qc4+ {[%emt 0:00:20]} Kg7 {[%emt 0:00:06]} 80. Qc7 {[%emt 0:00:07]} Bg5 {[%emt 0:00:08]} 81. a5 {[%emt 0:00:35]} bxa5 {[%emt 0:00:02]} 82. b6 {[%emt 0:00:00]} Rh1+ {[%emt 0:00:23]} 83. Ke2 {[%emt 0:00:05]} Rb1 {[%emt 0:00:08]} 84. b7 {[%emt 0:00:06]} Rb2+ {[%emt 0:00:19]} 85. Kf3 {[%emt 0:00:01]} a4 {[%emt 0:00:07]} 86. b8=Q {[%emt 0:00:11]} Rxb8 {[%emt 0:00:01]} 87. Qxb8 {[%emt 0:00:01]} a3 {[%emt 0:00:04]} 88. Qa7 {[%emt 0:00:02]} Bf6 {[%emt 0:00:05]} 89. Qxa3 {[%emt 0:00:02]} Ng6 {[%emt 0:00:05]} 90. Ke4 {[%emt 0:00:02]} Ne7 {[%emt 0:00:02]} 91. Qh3 {[%emt 0:00:23]} Kg6 {[%emt 0:00:08]} 92. Kf4 {[%emt 0:00:24]} Kg7 {[%emt 0:00:07]} 93. Qh5 {[%emt 0:00:18]} Kg8 {[%emt 0:00:21]} 94. Qe8+ {[%emt 0:00:10]} Kg7 {[%emt 0:00:01]} 95. Kg4 {[%emt 0:00:01]} Ng6 {[%emt 0:00:24]} 96. Kf5 {[%emt 0:00:07]} Nh4+ {[%emt 0:00:17]} 97. Ke6 {[%emt 0:00:05]} Bg5 {[%emt 0:00:01]} 98. Qh5 {[%emt 0:00:31]} 1-0

[Event "RUS-ch Rapid Men 2018"]
[Site "Sochi"]
[Date "2018.10.05"]
[Round "2"]
[White "Ivlev, Aleksey"]
[Black "Grachev, Boris"]
[Result "1-0"]
[ECO "E04"]
[WhiteElo "2326"]
[BlackElo "2626"]
[Annotator "ChessBase"]
[PlyCount "75"]
[EventDate "2018.10.05"]
[EventType "swiss"]
[EventCountry "RUS"]
[SourceTitle "playchess.com"]
[Source "ChessBase"]
[SourceQuality "1"]
[TimeControl "900+10"]

1. d4 {[%emt 0:00:00]} d5 {[%emt 0:00:05]} 2. c4 {[%emt 0:00:00]} e6 {[%emt 0:00:01]} 3. Nf3 {[%emt 0:00:00]} Nf6 {[%emt 0:00:02]} 4. g3 {[%emt 0:00:00]} dxc4 {[%emt 0:00:02]} 5. Bg2 {[%emt 0:00:01]} Bd7 {[%emt 0:00:01]} 6. Ne5 {[%emt 0:00:25]} Bc6 {[%emt 0:00:01]} 7. Nxc6 {[%emt 0:00:06]} Nxc6 {[%emt 0:00:02]} 8. Qa4 {[%emt 0:00:15]} Qd7 {[%emt 0:00:16]} 9. Qxc4 {[%emt 0:03:08]} Nxd4 {[%emt 0:00:13]} 10. Bxb7 {[%emt 0:01:24]} Rb8 {[%emt 0:00:03]} 11. Bg2 {[%emt 0:00:19]} Bb4+ {[%emt 0:00:38]} 12. Nd2 {[%emt 0:03:01]} O-O {[%emt 0:03:32]} 13. O-O {[%emt 0:02:38]} Bxd2 {[%emt 0:01:16]} 14. Bxd2 {[%emt 0:00:01]} Rxb2 {[%emt 0:00:02]} 15. Be3 {[%emt 0:01:57]} Nc2 {[%emt 0:00:59]} 16. Bc1 {[%emt 0:00:22]} Qb5 {[%emt 0:03:37]} 17. Qc3 {[%emt 0:00:31]} Rb1 {[%emt 0:02:41]} 18. Rxb1 {[%emt 0:00:02]} Qxb1 {[%emt 0:00:02]} 19. Ba3 {[%emt 0:00:04]} Qxa2 {[%emt 0:03:36]} 20. Bxf8 {[%emt 0:00:03]} Kxf8 {[%emt 0:00:02]} 21. Rc1 {[%emt 0:00:07]} Na3 {[%emt 0:00:02]} 22. Ra1 {[%emt 0:00:07]} Qxe2 {[%emt 0:00:02]} 23. Qxa3+ {[%emt 0:00:12]} Kg8 {[%emt 0:00:01]} 24. Qf3 {[%emt 0:00:05]} Qxf3 {[%emt 0:00:47]} 25. Bxf3 {[%emt 0:00:01]} g5 {[%emt 0:00:02]} 26. Rxa7 {[%emt 0:00:06]} g4 {[%emt 0:00:01]} 27. Bc6 {[%emt 0:00:08]} Kg7 {[%emt 0:00:02]} 28. Rxc7 {[%emt 0:00:02]} h5 {[%emt 0:00:02]} 29. Kg2 {[%emt 0:00:22]} Kg6 {[%emt 0:00:07]} 30. Kf1 {[%emt 0:01:08]} Nh7 {[%emt 0:00:22]} 31. Ke2 {[%emt 0:00:08]} Ng5 {[%emt 0:00:02]} 32. Ke3 {[%emt 0:00:04]} Kf6 {[%emt 0:00:19]} 33. f4 {[%emt 0:00:16]} gxf3 {[%emt 0:00:27]} 34. Bxf3 {[%emt 0:00:09]} Kg6 {[%emt 0:00:03]} 35. h4 {[%emt 0:00:10]} Nh7 {[%emt 0:00:02]} 36. Bxh5+ {[%emt 0:00:48]} Kxh5 {[%emt 0:00:04]} 37. Rxf7 {[%emt 0:00:01]} Kg6 {[%emt 0:00:01]} 38. Rxh7 {[%emt 0:00:03]} 1-0

[Event "RUS-ch Rapid Men 2018"]
[Site "Sochi"]
[Date "2018.10.05"]
[Round "2"]
[White "Inozemtsev, Sergei"]
[Black "Demidov, Mikhail"]
[Result "0-1"]
[ECO "B04"]
[WhiteElo "2310"]
[BlackElo "2514"]
[Annotator "ChessBase"]
[PlyCount "104"]
[EventDate "2018.10.05"]
[EventType "swiss"]
[EventCountry "RUS"]
[SourceTitle "playchess.com"]
[Source "ChessBase"]
[SourceQuality "1"]
[TimeControl "900+10"]

1. e4 {[%emt 0:00:00]} Nf6 {[%emt 0:00:04]} 2. e5 {[%emt 0:00:56]} Nd5 {[%emt 0:00:01]} 3. d4 {[%emt 0:00:13]} d6 {[%emt 0:00:02]} 4. Nf3 {[%emt 0:00:07]} Nb6 {[%emt 0:00:08]} 5. Be2 {[%emt 0:00:29]} Bg4 {[%emt 0:00:21]} 6. Be3 {[%emt 0:00:49]} e6 {[%emt 0:00:10]} 7. O-O {[%emt 0:00:16]} Nc6 {[%emt 0:01:08]} 8. Nbd2 {[%emt 0:04:28]} Be7 {[%emt 0:00:16]} 9. Re1 {[%emt 0:02:00]} Nd5 {[%emt 0:00:21]} 10. exd6 {[%emt 0:01:37]} cxd6 {[%emt 0:00:12]} 11. c3 {[%emt 0:00:25]} O-O {[%emt 0:00:20]} 12. Nf1 {[%emt 0:00:16]} Bf6 {[%emt 0:00:14]} 13. Bd2 {[%emt 0:00:17]} Qb6 {[%emt 0:00:17]} 14. Qb3 {[%emt 0:00:16]} Qc7 {[%emt 0:00:09]} 15. Ng3 {[%emt 0:00:18]} Na5 {[%emt 0:00:55]} 16. Qa4 {[%emt 0:00:11]} Rfc8 {[%emt 0:00:21]} 17. Ne4 {[%emt 0:01:36]} Be7 {[%emt 0:00:15]} 18. Ng3 {[%emt 0:01:10]} a6 {[%emt 0:00:47]} 19. h3 {[%emt 0:00:10]} Bxf3 {[%emt 0:00:13]} 20. Bxf3 {[%emt 0:00:02]} Nc4 {[%emt 0:00:14]} 21. Bc1 {[%emt 0:00:13]} Nf6 {[%emt 0:00:21]} 22. Qc2 {[%emt 0:00:21]} d5 {[%emt 0:00:07]} 23. Ne2 {[%emt 0:00:17]} Bd6 {[%emt 0:00:16]} 24. Bg5 {[%emt 0:00:12]} Nd7 {[%emt 0:00:04]} 25. Nc1 {[%emt 0:00:05]} b5 {[%emt 0:00:24]} 26. Nd3 {[%emt 0:00:15]} a5 {[%emt 0:00:08]} 27. a3 {[%emt 0:00:03]} Rab8 {[%emt 0:00:13]} 28. b4 {[%emt 0:00:15]} h6 {[%emt 0:01:01]} 29. Bc1 {[%emt 0:00:30]} Ra8 {[%emt 0:00:06]} 30. Nc5 {[%emt 0:00:32]} Nf8 {[%emt 0:00:06]} 31. Ra2 {[%emt 0:00:07]} Ra7 {[%emt 0:00:09]} 32. Qb1 {[%emt 0:00:29]} Rca8 {[%emt 0:00:09]} 33. Ree2 {[%emt 0:00:09]} Bh2+ {[%emt 0:00:16]} 34. Kh1 {[%emt 0:00:06]} Bf4 {[%emt 0:00:01]} 35. Be3 {[%emt 0:00:35]} Qb8 {[%emt 0:01:01]} 36. Nd3 {[%emt 0:00:38]} Bxe3 {[%emt 0:00:08]} 37. fxe3 {[%emt 0:00:02]} axb4 {[%emt 0:00:12]} 38. axb4 {[%emt 0:00:15]} Rxa2 {[%emt 0:00:05]} 39. Rxa2 {[%emt 0:00:02]} Nxe3 {[%emt 0:00:10]} 40. Ne5 {[%emt 0:00:17]} Rxa2 {[%emt 0:01:06]} 41. Qxa2 {[%emt 0:00:02]} Qc7 {[%emt 0:00:22]} 42. Qd2 {[%emt 0:00:35]} Nf5 {[%emt 0:00:17]} 43. Kg1 {[%emt 0:00:13]} Nd7 {[%emt 0:00:31]} 44. Nd3 {[%emt 0:00:16]} Nb6 {[%emt 0:00:27]} 45. Nc5 {[%emt 0:00:07]} Nc4 {[%emt 0:00:06]} 46. Qe1 {[%emt 0:00:12]} Qd6 {[%emt 0:00:21]} 47. Bg4 {[%emt 0:00:11]} Nfe3 {[%emt 0:00:37]} 48. Bf3 {[%emt 0:00:10]} Qf4 {[%emt 0:00:53]} 49. Nd3 {[%emt 0:00:12]} Qg5 {[%emt 0:00:13]} 50. Qf2 {[%emt 0:00:08]} Nf5 {[%emt 0:00:14]} 51. Bg4 {[%emt 0:00:05]} Nfd6 {[%emt 0:00:04]} 52. Qf4 {[%emt 0:00:14]} Ne4 {[%emt 0:00:32]} 0-1

[Event "RUS-ch Rapid Men 2018"]
[Site "Sochi"]
[Date "2018.10.05"]
[Round "2"]
[White "Miroshnichenko, Pavel"]
[Black "Khanin, Semen"]
[Result "1/2-1/2"]
[ECO "C47"]
[WhiteElo "2275"]
[BlackElo "2510"]
[Annotator "ChessBase"]
[PlyCount "103"]
[EventDate "2018.10.05"]
[EventType "swiss"]
[EventCountry "RUS"]
[SourceTitle "playchess.com"]
[Source "ChessBase"]
[SourceQuality "1"]
[TimeControl "900+10"]

1. e4 {[%emt 0:00:00]} e5 {[%emt 0:00:00]} 2. Nf3 {[%emt 0:00:00]} Nc6 {[%emt 0:00:00]} 3. Nc3 {[%emt 0:00:00]} Nf6 {[%emt 0:00:00]} 4. g3 {[%emt 0:00:01]} d5 {[%emt 0:00:06]} 5. exd5 {[%emt 0:00:01]} Nxd5 {[%emt 0:00:02]} 6. Bg2 {[%emt 0:00:02]} Nxc3 {[%emt 0:00:17]} 7. bxc3 {[%emt 0:00:02]} Bc5 {[%emt 0:00:02]} 8. O-O {[%emt 0:00:02]} O-O {[%emt 0:00:02]} 9. d3 {[%emt 0:00:22]} Bb6 {[%emt 0:00:13]} 10. Be3 {[%emt 0:00:37]} Bg4 {[%emt 0:00:29]} 11. Qe1 {[%emt 0:00:33]} Re8 {[%emt 0:00:54]} 12. Nd2 {[%emt 0:00:20]} Nd4 {[%emt 0:00:08]} 13. cxd4 {[%emt 0:01:18]} exd4 {[%emt 0:00:02]} 14. Nc4 {[%emt 0:00:23]} dxe3 {[%emt 0:00:34]} 15. Nxb6 {[%emt 0:00:21]} axb6 {[%emt 0:00:19]} 16. fxe3 {[%emt 0:00:04]} c6 {[%emt 0:00:16]} 17. Qb4 {[%emt 0:02:06]} Be6 {[%emt 0:00:21]} 18. a4 {[%emt 0:00:01]} Ra6 {[%emt 0:00:32]} 19. Qf4 {[%emt 0:01:33]} Qe7 {[%emt 0:00:10]} 20. Be4 {[%emt 0:00:42]} Rea8 {[%emt 0:00:21]} 21. Qe5 {[%emt 0:01:45]} Ra5 {[%emt 0:01:56]} 22. Qd4 {[%emt 0:00:03]} Qc5 {[%emt 0:00:05]} 23. Qxc5 {[%emt 0:01:04]} bxc5 {[%emt 0:01:33]} 24. Rab1 {[%emt 0:00:48]} Bc8 {[%emt 0:03:06]} 25. Bf5 {[%emt 0:00:02]} b5 {[%emt 0:00:03]} 26. Be4 {[%emt 0:01:45]} R8a6 {[%emt 0:00:02]} 27. axb5 {[%emt 0:00:59]} cxb5 {[%emt 0:00:02]} 28. Bd5 {[%emt 0:00:01]} Be6 {[%emt 0:01:09]} 29. Bxe6 {[%emt 0:00:10]} Rxe6 {[%emt 0:00:02]} 30. Rf5 {[%emt 0:00:13]} b4 {[%emt 0:00:01]} 31. Kf2 {[%emt 0:00:10]} g6 {[%emt 0:00:02]} 32. Rd5 {[%emt 0:00:06]} Rc6 {[%emt 0:00:05]} 33. d4 {[%emt 0:02:14]} Ra2 {[%emt 0:01:27]} 34. Rxc5 {[%emt 0:00:02]} Rxc5 {[%emt 0:00:30]} 35. dxc5 {[%emt 0:00:01]} Rxc2+ {[%emt 0:00:02]} 36. Kf3 {[%emt 0:00:01]} Rxc5 {[%emt 0:01:39]} 37. Rxb4 {[%emt 0:00:02]} Kg7 {[%emt 0:00:01]} 38. h4 {[%emt 0:00:02]} Rf5+ {[%emt 0:00:03]} 39. Kg2 {[%emt 0:00:48]} Kf6 {[%emt 0:00:06]} 40. Ra4 {[%emt 0:00:09]} h5 {[%emt 0:00:25]} 41. Rb4 {[%emt 0:00:01]} Ke5 {[%emt 0:00:02]} 42. Ra4 {[%emt 0:00:14]} Rf6 {[%emt 0:00:34]} 43. Rb4 {[%emt 0:00:07]} Rd6 {[%emt 0:00:05]} 44. Kf3 {[%emt 0:00:07]} Rd5 {[%emt 0:00:44]} 45. Re4+ {[%emt 0:00:07]} Kf5 {[%emt 0:00:02]} 46. Rf4+ {[%emt 0:00:06]} Ke6 {[%emt 0:00:02]} 47. Re4+ {[%emt 0:00:01]} Re5 {[%emt 0:00:02]} 48. Ra4 {[%emt 0:00:03]} Rf5+ {[%emt 0:00:05]} 49. Kg2 {[%emt 0:00:04]} Ke5 {[%emt 0:00:08]} 50. Rb4 {[%emt 0:00:03]} f6 {[%emt 0:00:03]} 51. Ra4 {[%emt 0:00:08]} Ke6 {[%emt 0:00:04]} 52. e4 1/2-1/2

[Event "RUS-ch Rapid Men 2018"]
[Site "Sochi"]
[Date "2018.10.05"]
[Round "3"]
[White "Ponkratov, Pavel"]
[Black "Bocharov, Dmitry"]
[Result "1-0"]
[ECO "B41"]
[WhiteElo "2628"]
[BlackElo "2557"]
[Annotator "RC"]
[PlyCount "77"]
[EventDate "2018.10.05"]
[EventType "swiss"]
[EventCountry "RUS"]
[SourceTitle "playchess.com"]
[Source "ChessBase"]
[SourceQuality "1"]
[TimeControl "900+10"]

1. e4 {[%emt 0:00:00]} c5 {[%emt 0:00:00]} 2. Nf3 {[%emt 0:00:00]} e6 {[%emt 0:00:00]} 3. d4 {[%emt 0:00:01]} cxd4 {[%emt 0:00:00]} 4. Nxd4 {[%emt 0:00:01]} a6 {[%emt 0:00:00]} 5. c4 {[%emt 0:00:19]} Nf6 {[%emt 0:00:00]} 6. Nc3 {[%emt 0:00:03]} Qc7 {[%emt 0:00:31]} 7. Qd3 {[%emt 0:00:17]} Nc6 {[%emt 0:01:11]} 8. Nxc6 {[%emt 0:00:06]} dxc6 {[%emt 0:00:07]} 9. Be2 {[%emt 0:00:48]} e5 {[%emt 0:00:45]} 10. Qg3 {[%emt 0:00:11]} Be7 {[%emt 0:00:02]} 11. f4 {[%emt 0:00:53]} Be6 {[%emt 0:04:47]} 12. O-O {[%emt 0:03:48]} exf4 {[%emt 0:04:10]} 13. Bxf4 {[%emt 0:00:02]} Qb6+ {[%emt 0:00:01]} 14. Kh1 {[%emt 0:00:02]} O-O {[%emt 0:00:03]} 15. e5 {[%emt 0:00:12]} Nd7 {[%emt 0:00:07]} 16. Bh6 {[%emt 0:03:01]} g6 {[%emt 0:00:05]} 17. Bg4 {[%emt 0:01:36]} Bxg4 {[%emt 0:00:38]} 18. Qxg4 {[%emt 0:00:01]} Nxe5 {[%emt 0:00:13]} 19. Qe2 {[%emt 0:00:01]} f6 {[%emt 0:00:11]} 20. Bxf8 {[%emt 0:00:02]} Rxf8 {[%emt 0:00:03]} 21. Rad1 {[%emt 0:00:22]} Qc7 {[%emt 0:00:37]} 22. Ne4 {[%emt 0:00:42]} f5 {[%emt 0:00:54]} 23. Nd2 {[%emt 0:00:01]} Bf6 {[%emt 0:00:09]} 24. Nf3 {[%emt 0:00:02]} Rf7 {[%emt 0:00:32]} 25. c5 {[%emt 0:00:25]} Re7 {[%emt 0:00:22]} 26. Nxe5 {[%emt 0:00:18]} Bxe5 {[%emt 0:00:11]} 27. Rfe1 {[%emt 0:00:08]} Kg7 {[%emt 0:00:09]} 28. b4 {[%emt 0:00:30]} h5 {[%emt 0:00:24]} 29. Qd2 {[%emt 0:01:44]} h4 {[%emt 0:00:17]} 30. Qd8 {[%emt 0:00:15]} Qxd8 {[%emt 0:00:42]} 31. Rxd8 {[%emt 0:00:02]} Kf6 {[%emt 0:00:01]} 32. h3 {[%emt 0:00:41]} g5 {[%emt 0:00:12]} 33. a3 {[%emt 0:00:27]} g4 {[%emt 0:00:50]} 34. Rf8+ {[%emt 0:00:19]} Kg5 {[%emt 0:00:58]} 35. Rg8+ {[%emt 0:00:18]} Kf4 {[%emt 0:00:28]} 36. hxg4 {[%emt 0:00:10]} fxg4 {[%emt 0:00:01]} 37. Rf1+ {[%emt 0:00:04]} Ke3 {[%emt 0:00:02]} 38. Rxg4 {[%emt 0:00:05]} Bg3 {[%emt 0:00:01]} 39. Rxg3+ {[%emt 0:00:02]} 1-0